Cogmind - Beta 16 @@@ ROGUE MODE // 2025.12.10 @ 13:07:12 Player: Mozco Result: Destroyed by S-10 Pest with Light Assault Rifle Performance ------------- Evolutions (1) 500 Regions Visited (2) 400 Robots Destroyed (18) 90 Value Destroyed (574) 574 Prototype IDs (0) 0 Alien Tech Used (0) 0 Bonus (0) 0 TOTAL SCORE: 1564 Bonus ------- None Cogmind --------- Core Integrity 0/400 Matter 290/300 Energy 79/100 System Corruption 0% Temperature Cool (0) Movement Core (100) Ox1 Location -9/Materials Parts ------- > --- POWER (1) -------- (None) > --- PROPULSION (2) --- (None) > --- UTILITY (4) ------ Melee Analysis Suite Melee Analysis Suite Melee Analysis Suite Hacking Suite > --- WEAPON (2) ------- Rocket Launcher > --- INVENTORY (5) ---- (None) Peak State ------------ > --- POWER ------------ Light Ion Engine > --- PROPULSION ------- (None) > --- UTILITY ---------- Melee Analysis Suite Melee Analysis Suite Melee Analysis Suite Hacking Suite > --- WEAPON ----------- Light EM Pulse Cannon Assault Rifle > --- INVENTORY -------- Rocket Launcher [Rating: 16] Favorites ----------- Power Light Ion Engine Engine Light Ion Engine Propulsion None Utility Hacking Suite Device Weight Redist. System Processor Melee Analysis Suite Hackware Hacking Suite Weapon Assault Rifle Energy Cannon Light EM Pulse Cannon Ballistic Gun Assault Rifle Launcher Grenade Launcher Impact Weapon Hammer Build | -11 -10 -9 ------- Run | Yrd Mat Mat Slots Evolved 2 | . . 2 Power . | . . . Propulsion . | . . . Utility 2 | . . 2 Weapon . | . . . Parts Attached 17 | 3 6 8 Power 3 | 1 1 1 Engine 3 | 1 1 1 Core . | . . . Reactor . | . . . Propulsion . | . . . Treads . | . . . Leg . | . . . Wheel . | . . . Hover . | . . . Flight . | . . . Utility 6 | . 2 4 Device 2 | . 1 1 Storage . | . . . Processor 3 | . . 3 Hackware 1 | . 1 . Protection . | . . . Artifact . | . . . Weapon 8 | 2 3 3 Energy Gun . | . . . Energy Cannon 2 | . . 2 Ballistic Gun 3 | 2 1 . Ballistic Cannon . | . . . Launcher 2 | . 1 1 Special Weapon . | . . . Impact Weapon 1 | . 1 . Slashing Weapon . | . . . Piercing Weapon . | . . . Special Melee Weapon . | . . . Unidentified Prototypes . | . . . Parts Lost 9 | . . 9 Power 2 | . . 2 Propulsion . | . . . Utility 2 | . . 2 Weapon 5 | . . 5 Highest Loss Streak 4 | . . 4 To Critical Strikes . | . . . Average Backups 2 | 1 4 2 Power 1 | 1 2 . Propulsion . | . . . Utility . | . . . Weapon 1 | . 1 1 Tool/Special . | . . . Unused Backups . | . . . Power . | . . . Propulsion . | . . . Utility . | . . . Weapon . | . . . Tool/Special . | . . . Average Slot Usage (%) 53 | . 45 56 Engine 7 | . 4 9 Device 5 | . 3 6 Processor 8 | . . 11 Hackware 10 | . 8 11 Energy Cannon 3 | . . 4 Ballistic Gun 11 | . 25 6 Impact Weapon 5 | . . 7 Peak Build Rating 16 | 3 8 16 Average Rating 8 | 1 4 9 On Entrance 3 | . 2 8 Avg Prop Armor Cover (%) . | . . . Naked Turns . | . . . Heaviest Build 10 | 3 7 10 Greatest Support 9 | 3 9 9 Greatest Overweight (x) 2 | . 1 2 Average Overweight (x) . | . . . Largest Inventory Capacity 5 | 5 5 5 Average Capacity 5 | 5 5 5 Most Carried 5 | 3 5 5 Average Carried 2 | 1 4 2 Final Capacity 5 | 5 5 5 Final Carried 5 | 3 5 . Class Distribution -------------------- 100% | Mutant Dominant Class ---------------- Mutant | -10/Materials Mutant | -9/Materials Resources | -11 -10 -9 ----------- Run | Yrd Mat Mat Matter Collected 484 | 230 148 106 Remotely . | . . . Salvage Created 674 | . 244 430 Parts 32 | . 18 14 Haulers Intercepted 1 | . 1 . Recyclers Shooed . | . . . Parts Field Recycled . | . . . Retrieved Matter . | . . . Parts Self-Destructed . | . . . Prevented . | . . . Parts Restored . | . . . Kills | -11 -10 -9 ------- Run | Yrd Mat Mat Combat Hostiles Destroyed 13 | . 3 10 Melee 4 | . . 4 Guns 2 | . 2 . Cannons 1 | . . 1 AOE 3 | . 1 2 Classes Destroyed 7 | . 5 2 Worker 1 | . 1 . Hauler 1 | . 1 . Recycler 1 | . 1 . Operator 1 | . 1 . Watcher 1 | . . 1 Grunt 11 | . 3 8 Sentry 2 | . . 2 Best Kill Streak 5 | . 3 5 Combat Bots Only 4 | . 2 4 Max Kills in Single Turn 2 | . 1 2 Gunslinging . | . . . Exploded 1 | . 1 1 Melee 1 | . . 1 Uniques/NPCs Destroyed . | . . . Combat | -11 -10 -9 -------- Run | Yrd Mat Mat Hostile Shots Fired 108 | . 9 99 Missed 30 | . 5 25 Hits 78 | . 4 74 Projectile 78 | . 4 74 Critical Strikes 3 | . . 3 Damage Taken 1080 | . 83 997 Core 430 | . 29 401 Absorbed by Shields . | . . . Core Remaining (%) 94 | 100 88 . Volleys Fired 21 | . 16 5 Largest 2 | . 2 2 Hottest 76 | . 40 76 Shots Fired 36 | . 28 8 Gun 27 | . 24 3 Cannon 3 | . . 3 Launcher 6 | . 4 2 Special . | . . . Kinetic 27 | . 24 3 Thermal . | . . . Explosive 6 | . 4 2 Electromagnetic 3 | . . 3 Robot Hit Streak 7 | . 7 7 Robot Miss Streak 2 | . 2 1 Penetration Max . | . . . Secondary Targets . | . . . Shots Hit Robots 51 | . 15 36 Core Hits 24 | . 14 10 Critical Kills . | . . . Critical Parts Destroyed 7 | . . 7 Critical Strikes 7 | . . 7 Smash 7 | . . 7 Melee Attacks 37 | . . 37 Impact 37 | . . 37 Slashing . | . . . Piercing . | . . . Sneak Attacks . | . . . Combat Hostiles . | . . . Follow-up Attacks . | . . . Damage Inflicted 1360 | . 357 1003 Guns 185 | . 162 23 Cannons 39 | . . 39 Explosions 389 | . 195 194 Melee 736 | . . 736 Ramming 11 | . . 11 Kinetic 185 | . 162 23 Thermal . | . . . Explosive 389 | . 195 194 Electromagnetic 39 | . . 39 Impact 736 | . . 736 Slashing . | . . . Piercing . | . . . Highest Corruption . | . . . Average Corruption . | . . . Corruption Purged . | . . . Corruption Blocked . | . . . Overload Shots . | . . . Overflow Damage 175 | . . 175 Projectiles . | . . . Explosions . | . . . Melee 175 | . . 175 Knockbacks 5 | . . 5 Impact 5 | . . 5 Kinetic . | . . . Secondary . | . . . Self-Inflicted Damage 43 | . 38 5 Shots 1 | . 1 . Rammed 2 | . . 2 Targets Rammed 2 | . . 2 Kicked . | . . . Crushed . | . . . Highest Temperature 42 | . 1 42 Average Temperature 12 | . 1 13 Received Heat Transfer 486 | . 24 462 Siege Activations . | . . . Martial Activations . | . . . Shielding Activations . | . . . Robots Disrupted . | . . . Combat Hostiles . | . . . Robots Corrupted 3 | . . 3 Combat Hostiles 3 | . . 3 Parts Fried 5 | . . 5 Impact Corruptions 9 | . . 9 Robots Melted . | . . . Combat Hostiles . | . . . Parts Melted . | . . . Heat Transferred . | . . . Parts Sabotaged . | . . . Parts Stolen . | . . . Parts Stripped . | . . . Power Chain Reactions . | . . . Alert | -11 -10 -9 ------- Run | Yrd Mat Mat Maximum Alert Level . | . . . Low Security (%) 100 | 100 100 100 Level 1 . | . . . Level 2 . | . . . Level 3 . | . . . Level 4 . | . . . Level 5 . | . . . High Security . | . . . Max Security . | . . . Peak Influence 174 | . 137 174 Initial 44 | . . 44 Average 97 | . 70 113 Influence Increases 512 | . 172 340 Destroy 0b10 Robot/C 260 | . 60 200 Destroy 0b10 Robot/NC 25 | . 20 5 Destroy Leader 64 | . 12 52 Successful Hack 5 | . 5 . Disable Machine 45 | . 30 15 Destroy Structure 53 | . 45 8 Partial Spotted 15 | . . 15 Lose Combat Pursuer 45 | . . 45 Influence Decreases 408 | . 65 343 Entered New Map 63 | . . 63 Time Decay 255 | . 65 190 Lost Part 90 | . . 90 Squads Dispatched 3 | . 1 2 Investigation 2 | . . 2 Extermination . | . . . Reinforcement 1 | . 1 . Assault . | . . . Garrison . | . . . Intercept . | . . . Searches Triggered . | . . . Construction Impeded . | . . . Haulers Reinforced . | . . . Active Scanning Responses . | . . . Cargo Convoy Interrupts . | . . . Stealth | -11 -10 -9 --------- Run | Yrd Mat Mat Distress Signals 2 | . . 2 Communications Jammed . | . . . Distress Signals . | . . . Times Spotted 24 | . 5 19 Peak Tracking Total 9 | . 2 9 Tactical Retreats 2 | . . 2 Traps | -11 -10 -9 ------- Run | Yrd Mat Mat Traps Triggered 1 | . . 1 Indirectly . | . . . Trap Hack Attempts . | . . . Triggered . | . . . Disarmed . | . . . Reprogrammed . | . . . Reused . | . . . Traps Extracted . | . . . Installed . | . . . Triggered . | . . . Machines | -11 -10 -9 ---------- Run | Yrd Mat Mat Machines Disabled 3 | . 2 1 Max in Single Turn 2 | . 2 1 Machines Repaired . | . . . Machines Dismantled . | . . . Machines Sabotaged . | . . . Overloaded Fab Kills . | . . . Hacking | -11 -10 -9 --------- Run | Yrd Mat Mat Machines Accessed 1 | . 1 . Terminals 1 | . 1 . Fabricators . | . . . Repair Stations . | . . . Recycling Units . | . . . Scanalyzers . | . . . Garrison Access . | . . . Total Hacks 2 | . 2 . Successful 1 | . 1 . Failed 1 | . 1 . Catastrophic . | . . . Database Lockouts . | . . . Manual 2 | . 2 . Terminals 2 | . 2 . Fabricators . | . . . Repair Stations . | . . . Recycling Units . | . . . Scanalyzers . | . . . Garrison Access . | . . . Terminal Hacks . | . . . Fabricator Hacks . | . . . Repair Station Hacks . | . . . Recycling Unit Hacks . | . . . Scanalyzer . | . . . Garrison Access Hacks . | . . . Unauthorized Hacks 1 | . 1 . Terminals 1 | . 1 . Botnet 1 | . 1 . Fabricators . | . . . Repair Stations . | . . . Recycling Units . | . . . Scanalyzers . | . . . Garrison Access . | . . . Data Cores Recovered . | . . . Used . | . . . Hacking Detections 1 | . 1 . Full Trace Events 1 | . 1 . Feedback Events . | . . . Feedback Blocked . | . . . Robot Schematics Acquired . | . . . Robots Built . | . . . Authchips . | . . . Time . | . . . Total Robot Build Rating . | . . . Part Schematics Acquired . | . . . Parts Built . | . . . Authchips . | . . . Time . | . . . Total Part Build Rating . | . . . Part Studies Acquired . | . . . Parts Repaired . | . . . Time . | . . . Parts Recycled . | . . . Recycled Matter . | . . . Retrieved Matter . | . . . Retrieved Components . | . . . Parts Scanalyzed . | . . . Part Schematics Acquired . | . . . Parts Damaged . | . . . Bothacking | -11 -10 -9 ------------ Run | Yrd Mat Mat Used RIF Installer . | . . . Robots Hacked . | . . . Non-combat . | . . . Combat . | . . . Robot Hacks Applied . | . . . Relay Couplers Released . | . . . Fabnet Peak Effective % . | . . . Robots Rewired . | . . . Allies Hacked . | . . . Hacks Repelled . | . . . Allies | -11 -10 -9 -------- Run | Yrd Mat Mat Total Allies . | . . . Largest Group . | . . . Highest-Rated Group . | . . . Highest-Rated Ally . | . . . Total Orders . | . . . Ally Attacks . | . . . Total Damage . | . . . Kills . | . . . Allies Corrupted . | . . . Allies Melted . | . . . Intel | -11 -10 -9 ------- Run | Yrd Mat Mat Active Infowar (turns) 105 | . . 105 Seismic 105 | . . 105 Robot Analysis Total . | . . . Derelict Logs Recovered . | . . . Drone Launches . | . . . Drone Recoveries . | . . . Exploration | -11 -10 -9 ------------- Run | Yrd Mat Mat Turns Passed 545 | 24 141 380 Spaces Moved 406 | 32 168 206 Core 406 | 32 168 206 Treads . | . . . Legs . | . . . Wheels . | . . . Hover . | . . . Flight . | . . . Fastest Speed 50 | 50 50 50 Average Speed 71 | 50 52 90 Slowest Speed 150 | 50 100 150 Overloaded Moves . | . . . Propulsion Burnouts . | . . . Robots Hopped . | . . . Potential Cave-ins . | . . . Cave-ins Triggered . | . . . Exploration Rate (%) 17 | 3 24 25 Regions Visited 2 Branch Regions . Pre-discovered Areas . | . . . Known Exits Taken . | . . . Unknown Exits Taken 2 | 1 1 . Scrap Searched . | . . . Spaces Dug 14 | . 14 . Terrain Destroyed 52 | . 43 9 Melee . | . . . Projectile . | . . . AOE 52 | . 43 9 Terrain Rammed . | . . . Walls Destroyed . | . . . Machines Disabled . | . . . Actions | -11 -10 -9 --------- Run | Yrd Mat Mat Total 557 | 38 193 326 Wait 60 | . . 60 Move 404 | 31 167 206 Hop . | . . . Pick Up 7 | 3 3 1 Fast Attach 10 | 2 3 5 Attach 8 | 1 1 6 Detach 2 | 1 . 1 Swap 3 | . 2 1 Drop 3 | . 1 2 Fire 21 | . 16 5 Melee 37 | . . 37 Ram 2 | . . 2 Kick . | . . . Crush . | . . . Escape Stasis . | . . . Rewire . | . . . Trap . | . . . Miscellaneous . | . . . Route ------- -11/Scrapyard -10/Materials (discovered 2 exits: [*Mat] / [*Min]) -9/Materials (discovered 1 exit: [*Min]) History --------- Turn | Location | Event 6 | -11/Scrapyard | Discovered new exit (range 16) 25 | -11/Scrapyard | Entered Materials 35 | -10/Materials | Discovered new exit (range 5) 138 | -10/Materials | Discovered new exit (range 16) 166 | -10/Materials | Entered another Materials area 166 | -9/Materials | Evolved 2 slots: Utility x2 309 | -9/Materials | Build established: Mutant 314 | -9/Materials | Core integrity fell below 50% 326 | -9/Materials | Lost 4 parts (1p1u2w) 504 | -9/Materials | Discovered new exit (range 13) 525 | -9/Materials | Core integrity fell below 20% 546 | -9/Materials | Destroyed by S-10 Pest with Light Assault Rifle Last Messages --------------- 00435_ U-05 Engineer lays Concrete. 00440_ Heat Sink fried. 00440_ Y-45 Defender destroyed. 00443_ Acquired 51 matter. 00503_ K-01 Serf cleans the Terminal. 00504_ EXIT=FOUND 00515_ K-01 Serf cleans the Terminal. 00519_ Terminal disabled. 00521_ Lgt. EM Pulse Cannon destroyed. 00521_ Critical hit (Burn: +37). 00521_ K-01 Serf collects debris. 00524_ Assault Rifle destroyed. 00526_ K-01 Serf collects debris. 00526_ Slammed into U-05 Engineer. 00529_ U-05 Engineer sends out distress signal. 00535_ Lgt. Ion Engine destroyed. 00539_ Triggered Alarm Trap. 00539_ An alarm sounds. 00539_ ALERT: Alarm triggered, dispatching investigation squad. 00541_ U-05 Engineer lays Concrete. Map ----- +----------------------------------------------------+ | ?????????????????????????????????????? | | ?????????????????????????????????????? | | ?????????????????????????????????????? | | ?????????????????????????????????????? | | ??????????? ???????????????????????? | | ??????????# ???????????????????????? | | ??????????# ???????????????????????? | | ??????????# ???????????????????????? | | ??????????# ????????????############ | | ??????????# ????????????# ## | | ??????????# ????????????# ## | | ??????????# #??????????## [## | | ??????????+ +??????????# ## | | ??????????# #???????????# ## | | ??????????# #???????????# ## | | ??????????# #????????????? ## | | ??????????# #??????????????? ??# | | ??????????# #??????????????###/###?# | | ??????????# ################ #?? | | ??????????# #?? | | ??????????# #?? | | ??????????# ### | | ??????????# ################ % | | ??????????# #??????????????## #### | | ??????????# #???????????????# #??? | | ??????????# @#???????????????# #??? | | ??????????# +???????????????# #??? | | ??????????# #???????????????# #??? | | ??????????# #???????????????# #??? | | ??????????# #???????????????# #??? | | ??????????# #???????????????# ??? | | ??????????# #???????????????+ ??? | | ??????????# #???????????????# ??? | | ??????????+ +???????????????####+??? | | ??????????# ???????????????????????? | | ??????????# ???????????????????????? | | ??????????# ???????????????????????? | | ?????????? a???????????????????????? | | ?????????? ???????????????????????? | | ?????????? ???????????????????????? | | ??????????? ???????????????????????? | | ?????????????????????????????????????? | | ?????????????????????????????????????? | | ?????????????????????????????????????? | | ?????????????????????????????????????? | | ?????????????????????????????????????? | | ?????????????????????????????????????? | | ?????????????????????????????????????? | | ?????????????????????????????????????? | | ?????????????????????????????????????? | +----------------------------------------------------+ Best States ------------- Heat Dissipation 28 Energy Generation 10 Energy Capacity 125 Matter Stores 300 Matter Capacity 300 Sight Range 16 Terrain Scan Density 10 Additional Mass Support 6 Evasion (%) 50 Melee Accuracy 15 Offensive Hacking 10 Item Schematics ----------------- None Robot Schematics ------------------ None Fabricated ------------ Nothing Repaired ---------- Nothing Studied --------- None Alien Tech Used ----------------- None Achievements -------------- None Challenges ------------ None Game ------ Seed SmallAnalysisSaw Manual? 0 Play Time 00:09:02 Cumulative 409.7 hours Start 2025.12.10 @ 13:01:39 End 2025.12.10 @ 13:07:12 Sessions 1 Manual Loads 0 Difficulty Rogue Special Mode None Game No. 409 Rogue 405 Adventurer 3 Explorer 1 Win Type - Total 5 Types 4/0/1/0/0/0/0/0/0/0 Lore% 86 Gallery% 80 Achievement% 69 Wizard Run 0 Options --------- Layout 0 ASCII 0 Keyboard 0 Movement Mouse Keybinds 0 Fullscreen 2 Font 18/SmallcapsGlow Map View 76x50 Zoom Use 0% Tactical HUD 1 Map Filters NONE Filters NONE Steam 1 RUN: 14e42507-361e-48bc-a2c4-fb948976bf8a